fUST/lending_fUST_20260406
["ID","MTS","AMOUNT","RATE_DAILY","PERIOD"]
[419850370,1775418648034,-151.0,0.00025409,2]
[419850371,1775418648043,-324.872923,0.00025409,2]
[419850372,1775418648052,-151.0,0.00025409,2]
[419850373,1775418648061,-324.872923,0.00025409,2]
[419850374,1775418648070,-151.0,0.00025409,2]
[419850375,1775418648079,-324.872928,0.00025409,2]
[419850376,1775418648088,-386.360114,0.00025409,2]
[419850377,1775418648097,-151.0,0.00025409,2]
[419850378,1775418648106,-386.360114,0.00025409,2]
[419850379,1775418648115,-151.0,0.00025409,2]
[419850380,1775418648124,-386.360114,0.00025409,2]
[419850381,1775418648133,-151.0,0.00025409,2]
[419850382,1775418648142,-386.3601196,0.00025409,2]
[419850383,1775418648151,-151.0,0.00025409,2]
[419850384,1775418648160,-502.9699845,0.00025421,2]
[419850385,1775418648169,-724.30271375,0.00025421,2]
[419850386,1775418648178,-1000.0,0.00025421,2]
[419850387,1775418648188,-1000.0,0.00025421,2]
[419850388,1775418648196,-150.43600233,0.00025421,2]
[419850389,1775418648205,-629487.49772023,0.00025444,2]
[419850395,1775418648476,-151.0,0.000245,2]
[419850397,1775418648486,-501.279437,0.000245,2]
[419850399,1775418648495,-255.376,0.00024622,2]
[419850401,1775418648504,-5527.71012698,0.00025444,2]
[419850404,1775418648525,-37915.34375525,0.00025444,2]
[419850405,1775418648537,-388.60021707,0.00025444,2]
[419850416,1775418648629,-151.0,0.0002375,2]
[419850418,1775418648638,-223.15194,0.0002375,2]
[419850420,1775418648648,-151.0,0.00023808,2]
[419850422,1775418648657,-223.15194,0.00023808,2]
[419850424,1775418648666,-151.0,0.00024421,2]
[419850426,1775418648675,-151.0,0.000245,2]
[419850427,1775418648683,-151.0,0.000245,2]
[419850428,1775418648692,-7667.27558761,0.00025444,2]
[419851236,1775419280861,-1062.57836695,0.00012897,2]
[419851915,1775419482266,10000.0,0.00032876,120]
[419851922,1775419694133,10000.0,0.00032876,120]
[419851935,1775419833786,-1000.0,0.00013699,2]
[419851936,1775419833795,-1909.998488,0.00015,2]
[419851938,1775419833805,-184.0,0.00020927,2]
[419851939,1775419833814,-440.0,0.00020927,2]
[419851940,1775419833823,-179.0,0.00022,2]
[419851941,1775419833832,-255.0,0.00022,2]
[419851942,1775419833842,-294.0,0.00022,2]
[419851943,1775419833851,-5.02727072,0.00022,2]
[419851944,1775419833891,-399.29698368,0.00022,2]
[419851948,1775419838446,-500.0,0.00021999,2]
[419851949,1775419838456,-355.01333337,0.00021999,2]
[419851950,1775419838465,-474.87900606,0.00021999,2]
[419851951,1775419838475,-39.6757456,0.00022,2]
[419851952,1775419838484,-2380.4700145,0.00022,2]
[419852173,1775419841121,-1125.34589103,0.00022,2]
[419852690,1775419846592,-4364.09126805,0.00022,2]
[419852979,1775419849500,-3874.30017127,0.00022,2]
[419853519,1775420463729,300.0,0.0003231,120]
[419853520,1775420465981,300.0,0.00032603,120]
[419853521,1775420466012,300.0,0.0003231,120]
[419853522,1775420468146,300.0,0.00032603,120]
[419853523,1775420468219,168.45733489,0.0003231,120]
[419853556,1775420950623,1052.12352713,0.00032876,120]
[419853557,1775420960811,168.45733488,0.00032603,120]
[419853571,1775421032271,-334.45923056,0.00013699,2]
[419853572,1775421032325,-515.6773213,0.00013699,2]
[419853573,1775421032337,-149.86344814,0.00013699,2]
[419853574,1775421032348,-173.38364683,0.00019513,2]
[419853575,1775421032358,-1000.0,0.00020952,2]
[419853576,1775421032367,-1405.0,0.00021837,2]
[419853577,1775421032376,-1235.62,0.00021837,2]
[419853578,1775421032385,-180.62835535,0.00021837,2]
[419853615,1775421033693,-3.37164465,0.00021837,2]
[419853616,1775421033704,-440.0,0.00021837,2]
[419853617,1775421033713,-500.0,0.00021873,2]
[419853618,1775421033723,-336.74598221,0.00021873,2]
[419853625,1775421038497,-163.25401779,0.00021873,2]
[419853627,1775421038506,-500.0,0.00021873,2]
[419853629,1775421038516,-500.0,0.00021873,2]
[419853631,1775421038526,-322.22533577,0.00021873,2]
[419853633,1775421038535,-500.0,0.00021873,2]
[419853635,1775421038544,-500.0,0.00021899,2]
[419853637,1775421038554,-500.0,0.00021899,2]
[419853639,1775421038563,-488.13359768,0.00021899,2]
[419853640,1775421038573,-524.02464834,0.00021899,2]
[419853641,1775421038582,-500.0,0.00021899,2]
[419853642,1775421038593,-500.0,0.00021899,2]
[419853643,1775421038603,-573.43634541,0.00021899,2]
[419853644,1775421038612,-500.0,0.00021899,2]
[419853645,1775421038622,-500.0,0.00021899,2]
[419853646,1775421038632,-500.0,0.00021899,2]
[419853647,1775421038642,-500.0,0.00021899,2]
[419853648,1775421038653,-500.0,0.00021899,2]
[419853649,1775421038663,-500.0,0.00021899,2]
[419853650,1775421038671,-500.0,0.00021899,2]
[419853651,1775421038680,-417.91829091,0.00021899,2]
[419853652,1775421038689,-356.28108226,0.00021899,2]
[419853653,1775421038708,-500.0,0.00021899,2]
[419853654,1775421038720,-500.0,0.00021899,2]
[419853655,1775421038730,-500.0,0.00021899,2]
[419853656,1775421038740,-500.0,0.00021899,2]
[419853658,1775421038749,-500.0,0.00021899,2]
[419853660,1775421038759,-500.0,0.00021899,2]
[419853663,1775421038770,-500.0,0.00021899,2]
[419853665,1775421038781,-500.0,0.00021899,2]
[419853667,1775421038790,-500.0,0.00021899,2]
[419853669,1775421038800,-500.0,0.00021899,2]
[419853670,1775421038809,-500.0,0.00021899,2]
[419853671,1775421038819,-500.0,0.00021899,2]
[419853672,1775421038829,-500.0,0.00021899,2]
[419853673,1775421038838,-500.0,0.00021899,2]
[419853674,1775421038848,-500.0,0.00021899,2]
[419853675,1775421038857,-500.0,0.00021899,2]
[419853676,1775421038866,-500.0,0.00021899,2]
[419853677,1775421038876,-500.0,0.00021899,2]
[419853678,1775421038885,-500.0,0.00021899,2]
[419853679,1775421038895,-36093.62322929,0.000219,2]
[419853680,1775421038908,-3814.79481265,0.000219,2]
[419853681,1775421038924,-4139.67013678,0.000219,2]
[419853682,1775421038936,-304135.41425016,0.000219,2]
[419853683,1775421038945,-36802.41406771,0.000219,2]
[419853684,1775421038955,-200.0,0.00021971,2]
[419853685,1775421038964,-200.0,0.00021972,2]
[419853686,1775421038973,-500.0,0.00021973,2]
[419853687,1775421038983,-500.0,0.00021973,2]
[419853688,1775421038992,-413.17145095,0.00021973,2]
[419853689,1775421039001,-65446.38661958,0.00022,2]
[419853690,1775421039012,-193.0,0.00022,2]
[419853691,1775421039021,-242.0,0.00022,2]
[419853692,1775421039031,-280.0,0.00022,2]
[419853693,1775421039040,-455.0,0.00022,2]
[419853694,1775421039050,-1957.85600004,0.00022208,2]
[419853695,1775421039059,-2230.315306,0.00022208,2]
[419853696,1775421039069,-1000.0,0.00022421,2]
[419853697,1775421039078,-500.0,0.00022421,2]
[419853698,1775421039087,-2312.83697232,0.00022756,2]
[419853699,1775421039096,-1500.0,0.00022968,2]
[419853700,1775421039106,-193.0,0.00023,2]
[419853701,1775421039115,-242.0,0.00023,2]
[419853702,1775421039125,-280.0,0.00023,2]
[419853703,1775421039134,-455.0,0.00023,2]
[419853704,1775421039143,-157.0,0.00023,7]
[419853705,1775421039152,-270.83333333,0.00023166,2]
[419853706,1775421039161,-342.41284407,0.00023304,2]
[419853707,1775421039170,-157.0,0.00023374,7]
[419853708,1775421039179,-2000.0,0.00023516,2]
[419853709,1775421039189,-1551488.0770509,0.0002375,2]
[419853710,1775421039201,-123904.44405998,0.0002375,2]
[419853711,1775421039210,-193.0,0.00024,2]
[419853712,1775421039219,-242.0,0.00024,2]
[419853713,1775421039229,-280.0,0.00024,2]
[419853714,1775421039238,-455.0,0.00024,2]
[419853715,1775421039247,-760.70086155,0.00024047,23]
[419853716,1775421039256,-780.08462646,0.00024064,2]
[419853717,1775421039265,-157.0,0.00024255,7]
[419853718,1775421039274,-2767.5790625,0.00024347,26]
[419853719,1775421039284,-151.5,0.00024384,2]
[419853720,1775421039293,-298.5,0.00024384,2]
[419853721,1775421039302,-151.5,0.00024384,2]
[419853722,1775421039312,-298.5,0.00024384,2]
[419853723,1775421039321,-200.0,0.00024384,2]
[419853724,1775421039331,-151.5,0.00024384,2]
[419853725,1775421039341,-151.5,0.00024384,2]
[419853726,1775421039350,-151.5,0.00024384,2]
[419853727,1775421039359,-221.1372934,0.00024384,2]
[419853728,1775421039368,-151.5,0.00024384,2]
[419853729,1775421039378,-298.5,0.00024384,2]
[419853730,1775421039388,-3233.10180983,0.00024447,27]
[419853731,1775421039398,-3891.29566995,0.00024647,29]
[419853732,1775421039407,-500.0,0.00024658,2]
[419853733,1775421039417,-500.0,0.00024658,2]
[419853734,1775421039426,-500.0,0.00024658,2]
[419853735,1775421039436,-500.0,0.00024658,2]
[419853736,1775421039445,-500.0,0.00024658,2]
[419853737,1775421039455,-319.43135939,0.00024658,2]
[419853738,1775421039465,-162.73424971,0.00024681,2]
[419853739,1775421039475,-500.0,0.0002478,2]
[419853740,1775421039484,-500.0,0.0002478,2]
[419853741,1775421039494,-184.0,0.00024837,2]
[419853742,1775421039504,-440.0,0.00024837,2]
[419853743,1775421039513,-196.0355567,0.00024859,2]
[419853744,1775421039523,-500.0,0.00024873,2]
[419853745,1775421039532,-500.0,0.00024873,2]
[419853746,1775421039542,-500.0,0.00024873,2]
[419853747,1775421039552,-500.0,0.00024873,2]
[419853748,1775421039562,-500.0,0.00024873,2]
[419853749,1775421039571,-500.0,0.00024873,2]
[419853750,1775421039580,-500.0,0.00024873,2]
[419853751,1775421039590,-365.87804834,0.00024873,2]
[419853752,1775421039599,-500.0,0.00024873,2]
[419853753,1775421039611,-500.0,0.00024873,2]
[419853754,1775421039621,-500.0,0.00024873,2]
[419853755,1775421039630,-500.0,0.00024873,2]
[419853756,1775421039640,-2352.41257063,0.000249,2]
[419853757,1775421039649,-2352.41257062,0.000249,2]
[419853758,1775421039659,-2352.41257062,0.000249,2]
[419853759,1775421039668,-225022.33881635,0.000249,2]
[419853760,1775421039680,-21202.43506293,0.000249,2]
[419853761,1775421039691,-5000.0,0.000249,2]
[419854073,1775421043720,-725.15,0.0002489,3]
[419854075,1775421043730,-4119.01448785,0.000249,2]
[419854078,1775421043742,-8839.75889643,0.000249,2]
[419854080,1775421043753,-10839.64487836,0.000249,2]
[419854363,1775421046804,-1367.87942627,0.000218,2]
[419855040,1775422240696,-5000.0,0.00012389,2]
[419855041,1775422240706,-5000.0,0.00012514,2]
[419855042,1775422240716,-1000.0,0.00013699,2]
[419855043,1775422240726,-173.38364682,0.00018853,2]
[419855044,1775422240735,-32361.22421695,0.000217,2]
[419855048,1775422240800,-9196.23280158,0.000217,2]
[419855050,1775422240810,-1242.75841722,0.000219,2]
[419855052,1775422240819,-171.0,0.00022,2]
[419855054,1775422240829,-206.0,0.00022,2]
[419855056,1775422240838,-238.0,0.00022,2]
[419855058,1775422240847,-423.0,0.00022,2]
[419855060,1775422240856,-500.0,0.00022482,2]
[419855062,1775422240866,-500.0,0.00022482,2]
[419855064,1775422240875,-317.36456469,0.00022482,2]
[419855066,1775422240884,-27849.87701582,0.00022483,2]
[419855068,1775422240894,-680.746,0.00022583,2]
[419855070,1775422240903,-440.0,0.00022583,2]
[419855072,1775422240912,-184.0,0.00022583,2]
[419855074,1775422240921,-6691.5653398,0.00022651,2]
[419855075,1775422240930,-171.0,0.00023,2]
[419855076,1775422240940,-206.0,0.00023,2]
[419855077,1775422240949,-238.0,0.00023,2]
[419855078,1775422240959,-423.0,0.00023,2]
[419855079,1775422240969,-270.83333333,0.00023,2]
[419855080,1775422240978,-1242.75841722,0.00023043,2]
[419855081,1775422240987,-2230.315306,0.00023723,2]
[419855082,1775422240997,-171.0,0.00024,2]
[419855083,1775422241007,-206.0,0.00024,2]
[419855084,1775422241017,-238.0,0.00024,2]
[419855085,1775422241027,-423.0,0.00024,2]
[419855086,1775422241036,-393.84633191,0.0002417,2]
[419855087,1775422241046,-500.0,0.0002417,2]
[419855088,1775422241055,-500.0,0.0002417,2]
[419855089,1775422241066,-500.0,0.0002417,2]
[419855090,1775422241075,-500.0,0.0002417,2]
[419855091,1775422241086,-500.0,0.0002417,2]
[419855092,1775422241096,-549.00363194,0.0002417,2]
[419855093,1775422241106,-5000.0,0.0002417,2]
[419855094,1775422241115,-500.0,0.0002417,2]
[419855095,1775422241124,-500.0,0.0002417,2]
[419855096,1775422241134,-500.0,0.0002417,2]
[419855097,1775422241143,-500.0,0.0002417,2]
[419855098,1775422241269,-500.0,0.0002417,2]
[419855099,1775422241280,-500.0,0.0002417,2]
[419855100,1775422241290,-500.0,0.0002417,2]
[419855101,1775422241299,-245.49419535,0.0002417,2]
[419855102,1775422241309,-557446.14766548,0.00024171,2]
[419855103,1775422241320,-33439.19554571,0.00024171,2]
[419855104,1775422241332,-36310.19956022,0.00024171,2]
[419855105,1775422241341,-200.0,0.00024185,2]
[419855106,1775422241351,-1242.75841722,0.00024186,2]
[419855107,1775422241360,-1611.91591956,0.00024271,2]
[419855108,1775422241369,-2091.683337,0.00024524,2]
[419855110,1775422241378,-325.0882202,0.0002485,2]
[419855112,1775422241388,-2418.0173088,0.00024866,2]
[419855114,1775422241397,-160.8985166,0.00024866,2]
[419855116,1775422241407,-15869.2856837,0.0002499,2]
[419855118,1775422241416,-21823.45776186,0.00025,4]
[419855120,1775422241426,-158.0,0.00025,7]
[419855122,1775422241435,-171.0,0.00025,2]
[419855124,1775422241444,-206.0,0.00025,2]
[419855126,1775422241454,-238.0,0.00025,2]
[419855128,1775422241463,-423.0,0.00025,2]
[419855130,1775422241472,-151.0,0.000251,19]
[419855132,1775422241481,-500.0,0.00025195,3]
[419855134,1775422241491,-500.0,0.00025195,3]
[419855136,1775422241500,-500.0,0.00025195,3]
[419855137,1775422241509,-507.75152326,0.00025195,3]
[419855139,1775422241519,-1242.75841722,0.00025329,2]
[419855141,1775422241529,-200.0,0.00025329,2]
[419855143,1775422241538,-2352.41257062,0.00025343,2]
[419855145,1775422241547,-3474.89310663,0.00025344,2]
[419855147,1775422241557,-500.0,0.00025344,2]
[419855149,1775422241566,-600.0,0.00025397,10]
[419855151,1775422241576,-600.0,0.000254,2]
[419855153,1775422241585,-152923.17203325,0.00025434,2]
[419855375,1775422243851,-2367.3153688,0.00025434,2]
[419855665,1775422246749,-250.13389741,0.00025434,2]
[419855666,1775422246761,-6341.24345023,0.00025434,2]
[419855667,1775422246803,-3727.19362323,0.00025434,2]
[419855668,1775422246814,-12522.95728689,0.00025434,2]
[419855679,1775422246964,-42258.77051299,0.00025434,2]
[419856315,1775422271005,894.499201,0.0002744,120]
[419856323,1775422554743,280.65571772,0.0003,120]
[419856330,1775423138275,-388.60021707,0.00012138,2]
[419856337,1775423406247,7062.29212004,7.6e-05,2]
[419856340,1775423431684,-394.47750578,0.00011539,2]
[419856341,1775423431738,-948.33945034,0.00011539,2]
[419856342,1775423431750,-968.8854789,0.00011539,2]
[419856343,1775423431794,-410.71337545,0.00011539,2]
[419856344,1775423431805,-675.42364712,0.00011539,2]
[419856345,1775423431818,-1169.56781786,0.00011539,2]
[419856372,1775423437906,-151.0,0.00011193,2]
[419856373,1775423437915,-432.59272455,0.00011539,2]
[419856374,1775423437927,-416.40727545,0.00011656,2]
[419856375,1775423437942,-1200.33293639,0.00011656,2]
[419856376,1775423438061,-1429.95527499,0.00011656,2]
[419856434,1775423440798,-1192.67223071,0.00011656,2]
[419856436,1775423440811,-760.63228246,0.00011656,2]
[419856438,1775423440820,-584.0,0.00011656,2]
[419856440,1775423440829,-151.0,0.00011774,2]
[419856442,1775423440839,-151.0,0.00012716,2]
[419856444,1775423440849,-277.34099666,0.00013027,2]
[419856446,1775423440858,-1000.0,0.00013699,2]
[419856448,1775423440867,-926.30181706,0.00019494,2]
[419856450,1775423440879,-489.40922024,0.00019494,2]
[419856452,1775423440889,-653.5770798,0.0002156,2]
[419856454,1775423440899,-2827.1825127,0.00021701,2]
[419856456,1775423440908,-440.0,0.00021702,2]
[419856458,1775423440917,-184.0,0.00021702,2]
[419856460,1775423440926,-6999.67341726,0.000219,2]
[419856657,1775423442969,-3884.64735648,0.000219,2]
[419856659,1775423442981,-2323.8385751,0.000219,2]
[419856675,1775423443128,-7614.05948969,0.000219,2]
[419856677,1775423443138,-173.0,0.00022,2]
[419856679,1775423443148,-190.0,0.00022,2]
[419856681,1775423443157,-363.0,0.00022,2]
[419856683,1775423443167,-173.0,0.00023,2]
[419856685,1775423443176,-190.0,0.00023,2]
[419856687,1775423443186,-363.0,0.00023,2]
[419856689,1775423443195,-270.83333333,0.00023,2]
[419856691,1775423443205,-173.0,0.00024,2]
[419856693,1775423443214,-190.0,0.00024,2]
[419856695,1775423443223,-363.0,0.00024,2]
[419856697,1775423443233,-440.0,0.00024702,2]
[419856699,1775423443242,-184.0,0.00024702,2]
[419856701,1775423443252,-173.0,0.00025,2]
[419856703,1775423443261,-190.0,0.00025,2]
[419856705,1775423443270,-363.0,0.00025,2]
[419856707,1775423443280,-158.0,0.00025,7]
[419856709,1775423443289,-250.0,0.00025211,6]
[419856711,1775423443298,-621.37920861,0.00025243,2]
[419856713,1775423443308,-8006.16696137,0.00025334,2]
[419857027,1775423446243,-15376.86151439,0.00025334,2]
[419857029,1775423446251,-6688.43674114,0.00025334,2]
[419857031,1775423446261,-366.03903988,0.00025341,2]
[419857033,1775423446269,-366.03903985,0.00025342,2]
[419857035,1775423446278,-366.03903985,0.00025343,2]
[419857037,1775423446288,-366.03903985,0.00025343,2]
[419857039,1775423446297,-366.03903985,0.00025344,2]
[419857041,1775423446305,-608.07271795,0.00025369,2]
[419857664,1775424632924,-295.30926659,0.00012389,2]
[419857665,1775424632936,-523.77762343,0.00012389,2]
[419857666,1775424632947,-300.58662455,0.00012389,2]
[419857667,1775424632959,-3880.32648543,0.00012389,2]
[419857668,1775424632969,-1115.56760968,0.00012514,2]
[419857669,1775424632979,-1793.30073341,0.00012514,2]
[419857700,1775424638195,-2091.13165691,0.00012514,2]
[419857701,1775424638205,-1000.0,0.00013699,2]
[419857702,1775424638214,-152.0,0.00022,2]
[419857703,1775424638223,-299.0,0.00022,2]
[419857704,1775424638232,-153.0,0.00022,2]
[419857705,1775424638241,-152.0,0.00023,2]
[419857706,1775424638250,-299.0,0.00023,2]
[419857707,1775424638259,-270.83333333,0.00023,2]
[419857708,1775424638268,-153.0,0.00023,2]
[419857709,1775424638391,-436.0,0.00023025,2]
[419857710,1775424638400,-184.0,0.00023025,2]
[419857711,1775424638410,-151.0,0.00023522,2]
[419857712,1775424638419,-152.0,0.00024,2]
[419857713,1775424638428,-299.0,0.00024,2]
[419857714,1775424638437,-153.0,0.00024,2]
[419857715,1775424638446,-325.0882202,0.00024855,2]
[419857716,1775424638456,-259.45063033,0.000249,2]
[419857717,1775424638465,-467.01113459,0.000249,2]
[419857718,1775424638474,-217.77870851,0.000249,2]
[419857719,1775424638483,-159.0,0.00025,7]
[419857720,1775424638492,-152.0,0.00025,2]
[419857721,1775424638501,-299.0,0.00025,2]
[419857722,1775424638510,-153.0,0.00025,2]
[419857723,1775424638520,-1673.02546138,0.00025344,2]
[419857724,1775424638531,-443.29179036,0.00025344,2]
[419857740,1775424640854,-950.27927245,0.00025344,2]
[419857742,1775424640864,-124.80959008,0.00025369,3]
[419857971,1775424643196,-3954.16979638,0.00025091,2]
[419857983,1775424643305,-1045.83020362,0.00025091,2]
[419857985,1775424643315,-822.19040992,0.00025369,3]
[419857987,1775424643324,-947.0,0.00025369,3]
[419857989,1775424643333,-166.56523819,0.00025369,3]
[419857991,1775424643342,-947.0,0.00025369,3]
[419857993,1775424643351,-647.0,0.00025369,3]
[419857995,1775424643361,-158.83932,0.00025369,3]
[419857997,1775424643370,-947.0,0.00025369,3]
[419857999,1775424643380,-647.0,0.00025369,3]
[419858001,1775424643390,-647.0,0.00025369,3]
[419858003,1775424643399,-889.41294412,0.00025369,3]
[419858317,1775424646404,-57.58705588,0.00025369,3]
[419858318,1775424646414,-172.0,0.00025369,3]
[419858319,1775424646423,-947.0,0.00025369,3]
[419858320,1775424646432,-647.0,0.00025369,3]
[419858321,1775424646441,-947.0,0.00025369,3]
[419858322,1775424646450,-647.0,0.00025369,3]
[419858323,1775424646460,-947.0,0.00025369,3]
[419858324,1775424646469,-647.0,0.00025369,3]
[419858325,1775424646478,-647.0,0.00025369,3]
[419858326,1775424646487,-947.0,0.00025369,3]
[419858327,1775424646496,-947.0,0.00025369,3]
[419858328,1775424646505,-647.0,0.00025369,3]
[419858329,1775424646514,-791.79837408,0.00025369,3]
[419858330,1775424646523,-647.0,0.00025369,3]
[419858332,1775424646533,-647.0,0.00025369,3]
[419858334,1775424646542,-647.0,0.00025369,3]
[419858335,1775424646552,-647.0,0.00025369,3]
[419858336,1775424646562,-647.0,0.00025369,3]
[419858337,1775424646571,-647.0,0.00025369,3]
[419858338,1775424646582,-647.0,0.00025369,3]
[419858339,1775424646591,-669.40750528,0.00025369,3]
[419858340,1775424646601,-600.0,0.000254,2]
[419858341,1775424646610,-151.0,0.000254,13]
[419858342,1775424646619,-151.0,0.000254,16]
[419858343,1775424646629,-166.0,0.00025402,3]
[419858344,1775424646638,-166.0,0.00025402,3]
[419858345,1775424646649,-947.0,0.00025402,3]
[419858346,1775424646658,-647.0,0.00025402,3]
[419858347,1775424646667,-947.0,0.00025402,3]
[419858348,1775424646677,-166.0,0.00025402,3]
[419858349,1775424646687,-647.0,0.00025402,3]
[419858350,1775424646696,-947.0,0.00025402,3]
[419858351,1775424646706,-647.0,0.00025402,3]
[419858352,1775424646714,-166.0,0.00025402,3]
[419858353,1775424646725,-947.0,0.00025402,3]
[419858354,1775424646734,-647.0,0.00025402,3]
[419858355,1775424646743,-297.25765867,0.00025402,3]
[419858356,1775424646752,-947.0,0.00025402,3]
[419858357,1775424646761,-647.0,0.00025402,3]
[419858358,1775424646771,-947.0,0.00025402,3]
[419858359,1775424646780,-340.0,0.00025402,3]
[419858360,1775424646789,-647.0,0.00025402,3]
[419858361,1775424646798,-947.0,0.00025402,3]
[419858362,1775424646807,-340.0,0.00025402,3]
[419858363,1775424646816,-920.37020146,0.00025402,3]
[419858364,1775424646825,-340.0,0.00025402,3]
[419858365,1775424646834,-175.68171061,0.00025402,3]
[419858366,1775424646844,-270.83333333,0.00025434,3]
[419858367,1775424646853,-87466.8852672,0.00025434,2]
[419858368,1775424646862,-200.0,0.00025443,2]
[419858369,1775424646871,-275.69243233,0.00025443,2]
[419858370,1775424646881,-500.0,0.00025443,2]
[419858371,1775424646890,-584.30254235,0.00025443,2]
[419858372,1775424646899,-500.0,0.00025443,2]
[419858373,1775424646908,-500.0,0.00025443,2]
[419858374,1775424646917,-500.0,0.00025443,2]
[419858375,1775424646927,-500.0,0.00025443,2]
[419858376,1775424646936,-171.84593675,0.00025443,2]
[419858377,1775424646947,-500.0,0.00025443,2]
[419858378,1775424646955,-500.0,0.00025443,2]
[419858379,1775424646965,-500.0,0.00025443,2]
[419858380,1775424646974,-200.0,0.00025443,2]
[419858381,1775424646984,-1000.0,0.00025443,5]
[419858382,1775424646993,-1000.0,0.00025443,10]
[419858383,1775424647003,-310323.02559962,0.00025444,2]
[419858384,1775424647015,-15630.2,0.00025444,2]
[419858385,1775424647033,-26665.66992011,0.00025444,2]
[419858386,1775424647044,-426.28855298,0.00025444,2]
[419858387,1775424647058,-618472.62069888,0.00025444,2]
[419858877,1775424884008,293.46747301,0.00034703,120]
[419858878,1775424884349,293.46747301,0.00034703,120]
[419858879,1775424884754,293.46747301,0.00034703,120]
[419858880,1775424884976,293.46747301,0.00034703,120]
[419858881,1775424885353,293.46747301,0.00034703,120]
[419858882,1775424885670,293.46747301,0.00034703,120]
[419858883,1775424885995,293.46747301,0.00034703,120]
[419858915,1775425832396,-1000.0,0.00013699,2]
[419858916,1775425832406,-300.0,0.00015819,73]
[419858917,1775425832416,-153.0,0.00018862,2]
[419858918,1775425832425,-167.0,0.00019862,2]
[419858919,1775425832435,-153.0,0.00022,2]
[419858920,1775425832444,-254.0,0.00022,2]
[419858921,1775425832454,-153.0,0.00022,2]
[419858922,1775425832463,-162.0,0.00022,2]
[419858923,1775425832473,-160.0,0.00022366,2]
[419858924,1775425832482,-1200.0,0.00022999,2]
[419858925,1775425832492,-153.0,0.00023,2]
[419858926,1775425832502,-254.0,0.00023,2]
[419858927,1775425832511,-153.0,0.00023,2]
[419858928,1775425832521,-270.83333333,0.00023,2]
[419858929,1775425832530,-162.0,0.00023,2]
[419858930,1775425832540,-300.0,0.00023367,2]
[419858931,1775425832549,-300.0,0.00023368,2]
[419858932,1775425832558,-1405.0,0.00023369,2]
[419858933,1775425832568,-2203.0,0.00023369,2]
[419858934,1775425832578,-184.0,0.00023369,2]
[419858935,1775425832587,-159.025432,0.00023372,2]
[419858936,1775425832596,-153.0,0.00024,2]
[419858937,1775425832606,-254.0,0.00024,2]
[419858938,1775425832615,-167.99001359,0.00024,2]
[419858939,1775425832625,-162.0,0.00024,2]
[419858940,1775425832635,-162.380719,0.00024113,2]
[419858941,1775425832645,-151.0,0.00024113,2]
[419858942,1775425832654,-168.3888056,0.00024113,2]
[419858943,1775425832664,-461.0432349,0.00024113,2]
[419858944,1775425832673,-557.5788265,0.00024113,2]
[419858945,1775425832683,-28.67064747,0.00024113,2]
[419858946,1775425832694,-402.62825293,0.00024113,2]
[419858947,1775425832710,-126.2799261,0.00024113,2]
[419858948,1775425832719,-541.40354342,0.00024113,2]
[419858958,1775425838274,-507.38707281,0.00024113,2]
[419858959,1775425838328,-553.19902269,0.00024113,2]
[419858960,1775425838339,-628.32566708,0.00024113,2]